bitfinex/quotes_ETHUSD_20241223
["timestamp","ask_amount","ask_price","bid_price","bid_amount"]
[1734951000699,3.0,3338.9,3337.1,1.38763361]
[1734951000700,0.55,3338.8,3337.1,1.38763361]
[1734951000904,2.99589,3337.9,3337.1,1.38763361]
[1734951001125,2.99589,3337.9,3337.0,3.0]
[1734951001331,2.99574,3338.1,3337.0,3.0]
[1734951002007,2.99574,3338.1,3337.0,5.99662]
[1734951002340,2.99574,3338.1,3337.2,3.0]
[1734951003136,2.99562,3338.3,3337.2,5.99652]
[1734951003470,2.99564,3338.2,3337.0,3.0]
[1734951003618,2.99564,3338.2,3337.1,4.1946]
[1734951004029,2.99564,3338.2,3337.2,3.0]
[1734951004362,2.99613,3337.7,3336.9,8.98]
[1734951004642,3.54544,3338.4,3336.9,8.98]
[1734951004643,2.99616,3337.6,3336.9,8.98]
[1734951005601,2.99616,3337.6,3336.7,3.0]
[1734951005806,2.99616,3337.6,3336.7,3.96118154]
[1734951006062,3.0,3338.3,3336.7,0.96118154]
[1734951006206,2.996,3337.8,3336.8,3.0]
[1734951007102,5.99553,3338.3,3336.6,3.0]
[1734951007317,2.99634,3337.4,3336.6,3.0]
[1734951007652,2.9964,3337.4,3336.5,0.61477536]
[1734951007953,5.99571,3338.1,3336.0,8.98]
[1734951008155,0.55,3337.7,3336.1,4.41414899]
[1734951008348,2.99663,3337.1,3336.1,4.41414899]
[1734951008853,2.99663,3337.1,3336.2,3.0]
[1734951009560,2.99631,3337.5,3336.3,0.6065007]
[1734951009763,2.99655,3337.2,3336.3,0.6065007]
[1734951011529,2.99665,3337.1,3336.2,1.3396639]
[1734951012167,2.99673,3337.0,3336.0,5.99757]
[1734951012666,2.99645,3337.3,3335.9,2.99769]
[1734951012866,3.0,3337.9,3336.5,2.99712]
[1734951012867,2.99618,3337.6,3336.5,2.99712]
[1734951013166,0.55,3337.8,3335.9,3.0]
[1734951013370,2.99638,3337.4,3336.1,3.0]
[1734951013542,2.99638,3337.4,3336.4,3.0]
[1734951013950,2.99638,3337.4,3336.2,0.899759]
[1734951014156,2.49672062,3338.0,3336.7,2.99695]
[1734951014157,2.99609,3337.7,3336.7,2.99695]
[1734951014353,2.99609,3337.7,3335.2,0.1711951]
[1734951014354,3.0,3336.9,3335.2,0.1711951]
[1734951014553,2.99771,3335.9,3335.2,0.1711951]
[1734951014739,0.99315674,3336.8,3335.2,0.1711951]
[1734951014740,2.99728,3336.4,3335.2,0.1711951]
[1734951015071,2.99771,3335.9,3335.2,0.1711951]
[1734951015232,2.99706,3336.6,3335.2,0.1711951]
[1734951015427,2.99772,3335.9,3335.2,0.1711951]
[1734951015641,5.99412,3336.6,3335.2,0.1711951]
[1734951015867,2.99749,3336.2,3335.2,0.5468762]
[1734951016231,0.55,3336.5,3335.2,0.5468762]
[1734951016466,2.9976,3336.0,3335.2,0.1711951]
[1734951018645,0.55,3336.5,3335.2,0.1711951]
[1734951019459,2.99747,3336.2,3335.2,0.1711951]
[1734951019860,0.55,3336.5,3335.2,3.1711951]
[1734951020059,2.9977,3335.9,3335.2,0.1711951]
[1734951020773,2.99746,3336.2,3335.2,0.1711951]
[1734951021374,3.04672062,3336.6,3335.2,0.8467232]
[1734951021533,2.99724,3336.4,3335.3,5.99815]
[1734951021741,2.99741,3336.3,3335.2,3.8467232]
[1734951022059,2.49672062,3336.7,3336.0,2.18868988]
[1734951022285,2.99613,3337.7,3336.1,3.51886899]
[1734951022600,9.1891676,3338.1,3336.1,3.51886899]
[1734951022601,2.99686,3336.9,3336.2,3.0]
[1734951022777,2.99571,3338.1,3335.3,0.87947016]
[1734951022778,0.24999732,3338.1,3336.0,0.5998583]
[1734951022959,2.99699,3336.7,3335.6,5.99795]
[1734951023163,2.99715,3336.5,3335.7,1.71666399]
[1734951023385,2.99715,3336.5,3335.5,3.0]
[1734951023594,3.0,3337.4,3335.4,3.0]
[1734951023774,2.997,3336.7,3335.5,2.99796]
[1734951024096,0.55,3337.0,3335.7,3.0]
[1734951024279,2.99708,3336.6,3335.7,3.0]
[1734951024461,2.99708,3336.6,3335.9,0.59535531]
[1734951024662,2.99679,3336.9,3335.9,0.59535531]
[1734951024967,0.55,3336.8,3335.9,0.59535531]
[1734951025169,2.99712,3336.6,3335.9,0.59535531]
[1734951025363,2.99722,3336.5,3335.9,0.59535531]
[1734951026170,2.9973,3336.4,3335.4,3.0]
[1734951026383,2.9973,3336.4,3335.5,1.00011748]
[1734951027293,2.99714,3336.6,3335.5,3.99815748]
[1734951027608,2.99648,3337.3,3335.8,9.58201973]
[1734951027911,2.50183523,3337.3,3336.4,5.99721]
[1734951028473,2.50183523,3337.3,3336.5,2.99713]
[1734951028867,2.99625,3337.5,3336.5,2.99713]
[1734951029080,2.99625,3337.5,3335.6,2.99794]
[1734951029081,0.55,3338.0,3335.8,12.58201973]
[1734951029286,0.55,3337.7,3336.0,2.99754]
[1734951029506,2.99689,3336.8,3335.8,17.47140925]
[1734951029807,2.99672,3337.0,3335.9,2.99768]
[1734951030492,2.99634,3337.4,3335.8,14.47366925]
[1734951030690,2.99672,3337.0,3336.0,2.99759]
[1734951031894,2.99654,3337.2,3336.2,2.99741]
[1734951032300,2.99654,3337.2,3336.3,0.05968476]
[1734951033115,3.55,3337.8,3336.3,0.05968476]
[1734951033420,2.99672,3337.0,3336.3,0.05968476]
[1734951033599,2.99672,3337.0,3336.1,3.0]
[1734951033770,2.99672,3337.0,3336.4,0.0596382]
[1734951034112,2.99672,3337.0,3336.1,3.0]
[1734951034311,2.99672,3337.0,3336.5,0.0596382]
[1734951034520,2.99672,3337.0,3336.1,3.0]
[1734951034694,2.99672,3337.0,3336.6,0.05967146]
[1734951034873,2.99626,3337.5,3336.0,1.74712593]
[1734951035075,2.99617,3337.6,3336.7,0.05967146]
[1734951035301,5.49783523,3337.8,3336.7,2.9969]
[1734951035479,2.50183523,3337.8,3337.0,2.99666]
[1734951035678,5.49782523,3337.8,3336.8,3.05659803]
[1734951035879,5.49782523,3337.8,3336.8,2.99688]
[1734951036092,5.49782523,3337.8,3336.9,0.05970472]
[1734951036294,2.99599,3337.8,3336.9,0.05970472]
[1734951037526,5.49737523,3338.3,3337.3,2.99641]
[1734951037682,2.50183523,3338.3,3337.3,2.99635]
[1734951037882,5.49739523,3338.3,3337.4,0.05937215]
[1734951038282,2.99563,3338.2,3337.4,0.05937215]
[1734951038590,2.50183523,3338.3,3337.2,2.99651]
[1734951038800,2.99548,3338.4,3337.5,0.05937215]
[1734951039110,2.99548,3338.4,3337.3,2.99643]
[1734951039426,2.99561,3338.3,3337.3,3.296073]
[1734951039579,2.99561,3338.3,3337.4,0.05937215]
[1734951040516,2.9957,3338.2,3337.4,0.05937215]
[1734951040722,2.99547,3338.4,3337.4,0.05937215]
[1734951040876,2.99547,3338.4,3337.3,2.99642]
[1734951041080,2.99547,3338.4,3337.5,0.05876702]
[1734951041388,2.99553,3338.3,3337.6,0.05876702]
[1734951041589,2.50183523,3338.6,3337.5,2.99619]
[1734951041891,5.49695523,3338.8,3337.8,2.99592]
[1734951042139,2.50183523,3338.8,3337.5,0.299619]
[1734951042289,2.50183523,3338.8,3337.9,0.05838802]
[1734951042491,2.50183523,3338.8,3338.2,2.99555]
[1734951042815,2.50183523,3338.8,3338.1,3.0]
[1734951043015,2.50183523,3339.2,3338.3,0.05819524]
[1734951043189,2.99537,3338.5,3337.4,5.99632]
[1734951043390,2.50183523,3339.2,3338.4,0.05819524]
[1734951043588,2.50183523,3339.2,3337.5,1.71650099]
[1734951043589,2.99516,3338.8,3337.7,3.0]
[1734951043803,2.99493,3339.0,3338.5,0.05790946]
[1734951044100,2.99502,3338.9,3337.8,2.99598]
[1734951044302,2.99502,3338.9,3338.6,0.05790946]
[1734951044514,2.99485,3339.1,3337.9,2.99587]
[1734951044687,2.99485,3339.1,3337.9,0.599587]
[1734951044900,0.55,3339.2,3338.1,2.99571]
[1734951045106,3.54473,3339.2,3338.1,2.99571]
[1734951045311,2.99463,3339.4,3338.2,3.05357256]
[1734951045512,2.99484,3339.1,3338.2,0.05798256]
[1734951046119,2.99437,3339.6,3338.2,0.05798256]
[1734951046331,3.0,3339.7,3338.2,0.05798256]
[1734951046482,2.99437,3339.6,3338.2,0.05798256]
[1734951046685,2.99491,3339.0,3338.2,0.05798256]
[1734951047108,2.99446,3339.5,3338.0,5.9958]
[1734951047325,2.99474,3339.2,3338.3,0.05784965]
[1734951047530,2.50183523,3339.8,3338.2,12.00995196]
[1734951047737,5.49605523,3339.8,3338.4,0.05784965]
[1734951047938,5.49605523,3339.8,3338.4,2.24653953]
[1734951048123,2.50183523,3339.8,3338.5,8.98]
[1734951048327,2.50183523,3339.8,3338.7,5.99509]
[1734951048497,2.99401,3340.0,3338.7,3.0]
[1734951048830,2.99401,3340.0,3338.8,0.05784965]
[1734951049695,2.99382,3340.3,3339.0,2.99482]
[1734951049897,2.99382,3340.3,3339.0,2.99485]
[1734951050126,2.99392,3340.1,3339.0,2.99485]
[1734951050332,2.99392,3340.1,3339.1,0.05784965]
[1734951051462,2.99375,3340.3,3339.1,3.05262965]
[1734951051931,0.55,3340.4,3339.1,0.05784965]
[1734951052136,2.9941,3339.9,3339.1,0.05784965]
[1734951052352,2.9941,3339.9,3338.8,0.59664611]
[1734951052646,2.9942,3339.8,3338.9,0.05784965]
[1734951053445,2.99347,3340.6,3338.9,0.05784965]
[1734951053446,2.99442,3339.6,3338.9,0.05784965]
[1734951053759,2.99442,3339.6,3338.6,2.99526]
[1734951053904,2.99442,3339.6,3339.0,0.05618858]
[1734951054249,2.99442,3339.6,3338.7,3.0]
[1734951054449,2.99442,3339.6,3339.1,0.05619522]
[1734951054669,2.99421,3339.8,3338.7,4.20073032]
[1734951054969,2.99454,3339.5,3339.2,0.05619522]
[1734951055108,3.0,3339.9,3338.7,0.60120432]
[1734951055309,2.99412,3339.9,3338.7,3.59635432]
[1734951055547,2.99399,3340.1,3338.9,2.99497]
[1734951055911,2.99399,3340.1,3339.0,0.05628156]
[1734951056112,2.99406,3340.0,3339.0,0.05628156]
[1734951056536,2.99406,3340.0,3339.0,3.05628156]
[1734951057947,3.0,3340.9,3339.0,0.05628156]
[1734951058125,2.99409,3340.0,3339.0,0.05628156]
[1734951058466,2.99409,3340.0,3339.0,1.65550969]
[1734951060652,0.55,3340.6,3339.4,2.99446]
[1734951060860,2.99349,3340.6,3339.5,6.02432192]
[1734951061069,2.99329,3340.8,3339.6,2.99429]
[1734951061374,2.99314,3341.0,3339.8,2.99418]
[1734951061536,2.99314,3341.0,3339.9,0.02993798]
[1734951061738,2.99314,3341.0,3340.0,0.83880263]
[1734951062139,0.60474293,3341.9,3340.0,3.05600263]
[1734951062329,0.8039,3341.8,3340.2,0.773]
[1734951062530,2.99248,3341.7,3340.3,0.05598271]
[1734951062730,2.99257,3341.6,3340.3,0.82898271]
[1734951063060,5.65583523,3342.0,3340.4,0.2451]
[1734951063061,2.74793,3341.1,3340.4,0.2451]
[1734951063365,2.99313,3341.0,3340.4,0.30084368]
[1734951063954,3.54281,3341.4,3340.4,0.30084368]
[1734951064167,2.99316,3341.0,3340.4,0.30084368]
[1734951065445,3.0,3341.9,3340.4,0.30084368]
[1734951065752,2.99268,3341.5,3340.4,3.07929894]
[1734951065954,2.99278,3341.4,3340.5,0.30792989]
[1734951066133,2.99285,3341.3,3340.4,0.05574368]
[1734951066337,2.99285,3341.3,3340.3,3.0]
[1734951066737,2.99285,3341.3,3340.4,0.05496028]
[1734951068172,2.99239,3341.8,3339.9,0.60323865]
[1734951068173,0.55,3341.4,3339.9,0.60323865]
[1734951068377,0.55,3341.4,3340.5,0.05279326]
[1734951068378,2.99347,3340.6,3340.5,0.05279326]
[1734951068674,2.99347,3340.6,3339.7,1.25794586]
[1734951069035,2.99347,3340.6,3339.8,0.04924806]
[1734951073570,2.99356,3340.5,3339.8,0.04924806]
[1734951074159,2.99315,3341.0,3339.8,0.04924806]
[1734951074160,0.55,3341.0,3339.8,0.04924806]
[1734951074487,2.9941,3339.9,3339.8,0.04924806]
[1734951074982,5.99338,3340.7,3338.9,2.99498]
[1734951074983,2.99395,3340.1,3338.9,2.99498]
[1734951075184,2.99395,3340.1,3339.0,0.299498]
[1734951075546,5.99338,3340.7,3339.1,0.049313]
[1734951075547,3.0,3340.7,3339.1,0.049313]
[1734951075753,2.99377,3340.3,3339.1,0.049313]
[1734951075947,0.55,3341.3,3339.1,5.26794718]
[1734951076182,2.99347,3340.6,3339.4,3.0]
[1734951076383,2.99347,3340.6,3339.5,0.32994102]
[1734951076849,2.99347,3340.6,3339.6,0.04943242]
[1734951078986,2.99356,3340.5,3339.6,0.04943242]
[1734951079482,2.99348,3340.6,3339.6,0.04943242]
[1734951079791,0.55,3340.8,3339.6,0.04943242]
[1734951079971,2.99354,3340.6,3339.7,0.33439424]
[1734951080585,2.99354,3340.6,3339.8,0.04943242]
[1734951080759,0.55,3340.9,3339.8,0.04943242]
[1734951080965,2.99359,3340.5,3339.8,0.04943242]
[1734951081175,0.8,3340.6,3339.8,0.04943242]
[1734951081459,0.8,3340.6,3339.0,0.58482477]
[1734951081460,0.55,3340.5,3339.0,0.58482477]
[1734951081665,0.55,3340.5,3337.7,1.596073]
[1734951081666,4.35,3339.8,3337.8,8.98]
[1734951081881,2.99485,3339.1,3337.9,10.18564017]
[1734951082049,2.99485,3339.1,3338.0,8.98]
[1734951082248,2.99491,3339.0,3338.0,8.98]
[1734951082456,4.35,3339.8,3338.0,11.77915812]
[1734951082457,0.55,3339.8,3338.0,11.77915812]
[1734951082654,2.99428,3339.7,3338.4,2.99543]
[1734951082893,2.99439,3339.6,3338.5,0.299543]
[1734951083063,2.99428,3339.7,3338.1,3.0]
[1734951084379,2.9941,3339.9,3338.6,3.0]
[1734951084697,2.9942,3339.8,3338.6,3.0]
[1734951086409,2.99429,3339.7,3338.6,3.0]
[1734951086571,2.99429,3339.7,3338.7,0.599527]
[1734951086997,2.99429,3339.7,3338.8,0.04324138]
[1734951088004,2.99429,3339.7,3338.5,3.0]
[1734951088204,2.99429,3339.7,3338.9,0.04324138]
[1734951088507,2.99429,3339.7,3338.5,3.0]
[1734951088803,2.50183523,3340.0,3338.6,0.599541]
[1734951088996,2.99422,3339.8,3338.6,0.64278238]
[1734951089166,2.99427,3339.8,3338.6,0.64278238]
[1734951089371,2.99439,3339.6,3338.6,0.64278238]
[1734951089996,5.49579523,3340.1,3338.6,0.64278238]
[1734951090210,2.50183523,3340.1,3338.8,2.18868988]
[1734951090372,2.50183523,3340.1,3339.3,2.99462]
[1734951091002,2.50183523,3340.2,3339.4,0.04374567]
[1734951091213,2.50183523,3340.2,3339.4,3.03828567]
[1734951091831,5.49523523,3340.7,3339.4,0.04374567]
[1734951092136,2.50183523,3340.7,3339.3,6.58326864]
[1734951092436,5.49523523,3340.7,3339.4,5.15580286]
[1734951092627,5.49523523,3340.7,3339.4,8.19422446]
[1734951092825,2.50183523,3340.8,3339.4,5.19969446]
[1734951093018,2.99364,3340.5,3339.4,5.19969446]
[1734951093346,2.99364,3340.5,3339.5,1.77630631]
[1734951093492,2.50183523,3340.8,3339.5,1.77630631]
[1734951093703,2.50183523,3340.6,3338.8,8.98]
[1734951093908,2.50183523,3340.6,3338.6,0.599541]
[1734951093909,2.99374,3340.3,3339.6,0.0438916]
[1734951094135,2.99374,3340.3,3339.1,9.57543587]
[1734951094314,2.99384,3340.2,3339.7,0.0438916]
[1734951094508,2.99384,3340.2,3339.1,9.57543587]
[1734951094736,2.99367,3340.4,3339.8,0.0438916]
[1734951094935,5.49550523,3340.4,3339.2,1.25703359]
[1734951095327,5.49550523,3340.4,3339.3,0.0438916]
[1734951095743,2.99367,3340.4,3339.3,0.0438916]
[1734951096042,2.50183523,3340.6,3339.6,2.99436]
[1734951096242,2.50183523,3340.6,3339.7,0.299436]
[1734951096415,2.50183523,3340.6,3339.7,0.343029]
[1734951096744,2.50183523,3340.6,3339.7,0.043593]
[1734951097042,5.49524523,3340.7,3339.7,0.043593]
[1734951097353,2.99373,3340.4,3339.2,13.23703359]
[1734951097503,2.99349,3340.6,3339.8,0.043593]
[1734951097704,5.49515523,3340.8,3339.4,2.9945]
[1734951097901,5.49515523,3340.8,3339.9,0.04343378]
[1734951098218,5.49515523,3340.8,3340.0,0.04343378]
[1734951098406,2.50183523,3340.8,3339.6,0.02993896]
[1734951098608,2.50183523,3340.8,3340.4,2.99364]
[1734951099036,2.50183523,3340.8,3340.5,0.04342715]
[1734951099341,2.50183523,3341.4,3340.6,0.30370672]
[1734951099543,2.50183523,3341.4,3340.6,2.99339]
[1734951099748,2.50183523,3341.4,3340.7,0.04340725]
[1734951100310,3.75275284,3341.8,3340.7,0.04340725]
[1734951100311,2.50183523,3341.8,3340.7,0.04340725]
[1734951100941,2.50183523,3341.8,3340.7,3.04340725]
[1734951101142,2.50183523,3341.8,3340.8,0.60667268]
[1734951101349,5.49414523,3341.9,3340.8,0.60667268]
[1734951101655,2.50183523,3341.9,3340.9,0.04340725]
[1734951102116,2.50183523,3342.2,3341.0,2.99309]
[1734951102317,2.50183523,3342.2,3341.1,2.993]
[1734951102549,2.50183523,3342.2,3341.2,0.30663339]
[1734951102852,2.50183523,3342.2,3340.8,0.60667268]
[1734951103054,2.99197,3342.3,3340.8,0.60667268]
[1734951103551,3.0,3342.4,3340.9,9.02275072]
[1734951103931,3.0,3342.4,3341.3,2.99283]
[1734951104128,5.49343523,3342.7,3341.0,8.98]
[1734951104321,2.50183523,3342.7,3341.4,0.04134495]
[1734951104523,2.50183523,3342.7,3341.5,2.99258]
[1734951104723,2.50183523,3342.7,3341.5,3.03392495]
[1734951105120,5.49335523,3342.8,3341.5,3.03392495]
[1734951105363,5.49335523,3342.8,3341.6,0.30339249]
[1734951105545,2.50183523,3342.8,3341.6,3.29593249]
[1734951105751,2.50183523,3342.8,3341.7,0.04117264]
[1734951106334,0.55,3342.8,3341.7,0.04117264]
[1734951106534,2.99167,3342.7,3341.7,0.04117264]
[1734951106753,2.99168,3342.6,3341.7,0.04117264]
[1734951107562,2.99176,3342.6,3341.7,0.04117264]
[1734951108056,2.99176,3342.6,3341.2,11.9729]
[1734951108256,3.77292,3342.8,3341.8,0.04091421]
[1734951108421,0.55,3342.9,3341.4,2.99273]
[1734951108626,2.9917,3342.6,3341.9,0.04091421]
[1734951108838,2.9917,3342.6,3341.4,2.99273]
[1734951109036,2.9917,3342.6,3342.0,0.04091421]
[1734951109363,2.9917,3342.6,3341.3,1.37504881]
[1734951109569,2.99185,3342.5,3342.1,0.04091421]
[1734951109729,2.99185,3342.5,3341.2,8.98]
[1734951109730,0.55,3342.5,3341.2,8.98]
[1734951109929,2.99215,3342.1,3341.1,1.18181133]
[1734951110128,2.99196,3342.3,3341.3,0.04099372]
[1734951110366,2.99196,3342.3,3341.1,1.18181133]
[1734951110571,2.99196,3342.3,3341.4,0.04099372]
[1734951110783,2.99186,3342.4,3341.2,1.31550013]
[1734951110929,2.992,3342.3,3341.5,0.04107323]
[1734951111130,2.992,3342.3,3341.2,1.31550013]
[1734951111362,2.992,3342.3,3341.6,0.04107323]
[1734951111541,2.992,3342.3,3341.2,1.31550013]
[1734951111855,2.992,3342.3,3341.3,0.43086001]
[1734951112027,2.992,3342.3,3341.3,0.47193324]
[1734951114732,2.99207,3342.2,3341.3,0.47193324]
[1734951114930,3.55,3342.7,3341.3,0.04107323]
[1734951115269,2.992,3342.3,3341.3,0.04107323]
[1734951115447,2.992,3342.3,3341.0,2.9931]
[1734951115641,0.55,3342.2,3341.4,0.04086777]
[1734951115979,0.55,3342.2,3341.0,2.9931]
[1734951116146,0.55,3342.2,3341.5,0.04086777]
[1734951116345,0.55,3342.2,3341.1,0.41986016]
[1734951116541,3.54205,3342.2,3341.6,0.04086777]
[1734951116769,3.54205,3342.2,3341.1,0.41986016]
[1734951117245,3.0,3342.3,3341.2,2.99291]
[1734951117434,5.99196,3342.3,3341.3,0.34127702]
[1734951117634,5.99196,3342.3,3341.0,2.99308]
[1734951117945,3.54178,3342.5,3341.4,0.04086777]
[1734951118149,2.99188,3342.4,3341.1,2.99301]
[1734951118350,2.99188,3342.4,3341.5,0.04086777]
[1734951118563,2.99188,3342.4,3341.2,0.299301]
[1734951118865,2.99188,3342.4,3341.6,0.04086777]
[1734951119075,2.99188,3342.4,3341.2,0.299301]
[1734951119848,2.99188,3342.4,3341.3,0.04086777]
[1734951120050,2.99188,3342.4,3341.4,0.33331788]
[1734951120484,0.55,3342.7,3341.4,0.33331788]
[1734951120640,0.55,3342.7,3341.5,0.04086777]
[1734951120843,2.99199,3342.3,3341.5,0.04086777]
[1734951121056,2.99199,3342.3,3341.2,0.299301]
[1734951121374,2.99199,3342.3,3341.6,0.04086777]
[1734951121674,2.99199,3342.3,3341.7,0.04086777]
[1734951122057,2.99199,3342.3,3341.3,0.6292411]
[1734951122258,2.99199,3342.3,3341.8,0.04086777]
[1734951122484,2.99199,3342.3,3341.3,0.6292411]
[1734951122485,2.99203,3342.3,3341.3,0.6292411]
[1734951122641,2.99203,3342.3,3341.9,0.04086777]
[1734951122843,0.55,3342.5,3341.3,0.6292411]
[1734951123192,2.99205,3342.2,3342.0,0.04086777]
[1734951123354,2.99205,3342.2,3341.3,0.6292411]
[1734951123558,2.99193,3342.4,3341.3,0.6292411]
[1734951123887,0.55,3342.5,3341.4,0.43302398]
[1734951124099,2.99204,3342.2,3341.4,0.04086777]
[1734951124848,2.99204,3342.2,3341.5,0.04086777]
[1734951125047,2.99204,3342.2,3341.2,0.299301]
[1734951125248,2.99204,3342.2,3341.6,0.04086777]
[1734951125475,2.99204,3342.2,3341.2,0.299301]
[1734951125781,0.7886,3342.1,3341.7,0.04086777]
[1734951125943,2.99223,3342.0,3341.2,0.299301]
[1734951126343,2.99223,3342.0,3341.3,0.04086777]
[1734951126969,2.99206,3342.2,3341.3,0.04086777]
[1734951127145,2.99216,3342.1,3341.3,0.04086777]
[1734951127344,3.7811,3342.4,3341.3,0.04086777]
[1734951127345,3.0,3342.2,3341.3,0.04086777]
[1734951127883,2.99235,3341.9,3341.4,0.04116599]
[1734951128078,2.99235,3341.9,3340.9,8.98]
[1734951128241,2.99235,3341.9,3341.5,0.04116599]
[1734951128444,2.99235,3341.9,3341.0,1.25721789]
[1734951128643,2.99235,3341.9,3341.6,0.04116599]
[1734951128843,3.0,3342.2,3341.0,1.25721789]
[1734951129069,2.99233,3341.9,3341.7,0.04116599]
[1734951129274,2.99233,3341.9,3340.8,0.59882894]
[1734951129694,2.99233,3341.9,3340.7,3.0]
[1734951130023,2.99233,3341.9,3340.9,0.04116599]
[1734951130169,2.99233,3341.9,3340.7,3.0]
[1734951130506,2.99233,3341.9,3340.8,0.599344]
[1734951130658,2.99233,3341.9,3340.8,0.64050999]
[1734951132505,2.99222,3342.0,3340.8,3.63379999]
[1734951134992,2.99207,3342.2,3340.9,2.99315]
[1734951135351,2.99207,3342.2,3341.0,0.04099368]
[1734951135557,3.7811,3342.4,3341.0,0.46358466]
[1734951135558,2.99216,3342.1,3341.0,0.46358466]
[1734951136018,0.55,3342.3,3341.0,0.46358466]
[1734951136171,2.99231,3341.9,3341.0,0.46358466]
[1734951136521,2.99231,3341.9,3341.0,0.04099368]
[1734951136809,2.99231,3341.9,3340.8,0.599344]
[1734951137008,2.99231,3341.9,3341.1,0.04099368]
[1734951137318,2.99231,3341.9,3341.2,0.04099368]
[1734951137474,2.99231,3341.9,3340.8,0.599344]
[1734951137670,2.99231,3341.9,3341.3,0.04099368]
[1734951137979,3.0,3341.8,3340.8,0.599344]
[1734951138179,3.0,3341.8,3341.4,0.04099368]
[1734951138508,3.0,3341.8,3340.8,0.599344]
[1734951138708,3.0,3341.8,3341.5,0.04099368]
[1734951138923,3.0,3341.8,3340.8,0.599344]
[1734951139067,3.0,3341.8,3341.6,0.04099368]
[1734951139267,3.0,3341.8,3340.8,0.599344]
[1734951139466,3.0,3341.8,3341.7,0.04099368]
[1734951139695,3.0,3341.8,3340.8,0.599344]
[1734951139966,3.0,3341.8,3341.7,0.04099368]
[1734951140162,3.0,3341.8,3340.8,0.599344]
[1734951140386,3.0,3341.8,3340.9,1.31651261]
[1734951140581,3.0,3341.8,3340.9,1.35771172]
[1734951143005,5.9924,3341.8,3340.9,1.35771172]
[1734951143371,5.9924,3341.8,3340.9,1.31651261]
[1734951143699,5.9924,3341.8,3341.0,0.04125214]
[1734951144283,8.49423523,3341.8,3340.8,0.599344]
[1734951144604,0.8206,3341.7,3341.1,0.04125214]
[1734951144803,0.8206,3341.7,3340.9,0.41852061]
[1734951145000,0.8206,3341.7,3341.2,0.04125214]
[1734951145206,0.8206,3341.7,3340.9,0.41852061]
[1734951145376,3.32243523,3341.7,3340.9,0.41852061]
[1734951145576,3.32243523,3341.7,3341.0,0.04125214]
[1734951145777,2.50183523,3341.6,3341.0,0.04125214]
[1734951147377,3.32243523,3341.7,3341.0,0.04125214]
[1734951148412,2.50183523,3341.7,3341.0,0.04125214]
[1734951148617,2.50183523,3341.7,3341.6,2.99257]
[1734951148792,2.50183523,3341.7,3341.6,3.291827]
[1734951148993,2.50183523,3341.7,3341.6,6.33310565]
[1734951149582,2.50183523,3342.5,3341.6,3.34053565]
[1734951149878,2.50183523,3342.5,3341.8,2.99235]
[1734951150112,2.50183523,3342.5,3341.9,0.63328856]
[1734951150317,2.99171,3342.6,3341.6,0.60260966]
[1734951150485,0.7641,3342.7,3342.0,0.04036151]
[1734951150687,2.99178,3342.5,3341.5,1.25271972]
[1734951150887,3.0,3342.6,3342.1,0.04036151]
[1734951151086,0.7641,3342.1,3341.1,1.25271972]
[1734951151332,0.7641,3342.1,3341.2,0.3549105]
[1734951151482,0.7641,3342.1,3341.1,1.25271972]
[1734951151483,2.99275,3341.4,3341.1,1.25271972]
[1734951151821,2.99287,3341.3,3340.6,1.25271972]
[1734951152143,2.99286,3341.3,3340.6,1.25271972]
[1734951152435,0.7641,3341.5,3340.6,1.25271972]
[1734951152579,0.7641,3341.5,3340.6,1.92117234]
[1734951152915,2.50183523,3341.3,3340.6,0.66845262]
[1734951153696,3.26593523,3341.5,3340.6,0.66845262]
[1734951153896,2.50183523,3341.5,3340.6,0.66845262]
[1734951154093,2.50183523,3341.5,3340.6,3.66191262]
[1734951154405,2.50183523,3341.5,3340.7,1.32382289]
[1734951154612,2.50183523,3341.5,3340.7,4.31717289]
[1734951154927,2.50183523,3341.7,3340.7,4.31717289]
[1734951155085,2.50183523,3341.7,3340.8,2.99329]
[1734951155281,2.50183523,3341.7,3340.9,0.49855655]
[1734951155686,2.50183523,3341.8,3340.9,0.49855655]
[1734951155887,2.50183523,3341.8,3341.0,2.99311]
[1734951156605,2.50183523,3341.9,3341.0,2.99311]
[1734951157183,2.50183523,3341.9,3341.1,2.99299]
[1734951157410,2.50183523,3342.0,3341.1,2.99299]
[1734951158424,7.55441284,3342.4,3340.7,9.50582277]
[1734951158425,2.50183523,3342.2,3340.9,8.98]
[1734951158630,2.50183523,3342.2,3341.3,2.99279]
[1734951158792,2.50183523,3342.2,3341.1,3.59903062]
[1734951159125,5.49388523,3342.2,3341.1,0.60604062]
[1734951159829,2.50183523,3342.1,3341.1,0.60604062]
[1734951160418,2.50183523,3342.1,3341.0,4.84858228]
[1734951160626,2.50183523,3342.1,3341.1,1.68217523]
[1734951161111,2.99222,3342.0,3341.1,1.68217523]
[1734951161312,2.50183523,3342.0,3341.1,1.68217523]
[1734951161738,2.50183523,3342.0,3341.2,0.0385191]
[1734951162537,2.50183523,3342.0,3341.2,3.0314291]
[1734951162844,2.50183523,3342.0,3341.3,0.53218736]
[1734951163014,2.50183523,3342.1,3341.3,0.53218736]
[1734951163211,2.50183523,3342.1,3341.4,0.03855886]
[1734951165116,2.50183523,3342.1,3341.1,1.68217523]
[1734951165328,2.50183523,3342.1,3341.5,0.03845283]
[1734951165527,2.50183523,3342.1,3341.1,4.67516523]
[1734951165731,2.50183523,3342.1,3341.6,0.03845283]
[1734951165921,2.50183523,3342.1,3341.2,1.72634345]
[1734951166108,2.50183523,3342.1,3341.7,0.03845283]
[1734951166304,2.50183523,3342.1,3341.2,1.72634345]
[1734951166504,2.50183523,3342.1,3341.8,0.03845283]
[1734951166704,2.50183523,3342.1,3341.2,2.99289]
[1734951166927,2.50183523,3342.1,3341.9,0.03845283]
[1734951167131,2.50183523,3342.1,3341.3,0.36011593]
[1734951167331,2.50183523,3342.1,3342.0,0.03845283]
[1734951167533,2.50183523,3342.1,3341.3,0.36011593]